lending/lending_fUSD_20250425
["ID","MTS","AMOUNT","RATE_DAILY","PERIOD"]
[358984992,1745603463507,-500.0,0.0003041,2]
[358984993,1745603463516,-500.0,0.0003041,2]
[358984994,1745603463526,-793.02,0.0003041,2]
[358984995,1745603463535,-500.0,0.0003041,2]
[358984996,1745603463544,-500.0,0.0003041,2]
[358984997,1745603463554,-585.95866082,0.0003041,2]
[358984998,1745603463564,-500.0,0.0003041,2]
[358984999,1745603463573,-500.0,0.0003041,2]
[358985000,1745603463583,-912.18,0.0003041,2]
[358985001,1745603463592,-774.86,0.0003041,2]
[358985002,1745603463603,-531.57118819,0.0003041,2]
[358985003,1745603463612,-500.0,0.0003041,2]
[358985004,1745603463621,-500.0,0.0003041,2]
[358985005,1745603463631,-1282.07,0.0003041,2]
[358985006,1745603463642,-569.90314377,0.0003041,2]
[358985007,1745603463651,-674.11,0.0003041,2]
[358985008,1745603463661,-926.46,0.0003041,2]
[358985009,1745603463670,-500.0,0.0003041,2]
[358985010,1745603463680,-500.0,0.0003041,2]
[358985011,1745603463690,-511.30064413,0.0003041,2]
[358985012,1745603463699,-500.0,0.0003041,2]
[358985013,1745603463710,-500.0,0.0003041,2]
[358985014,1745603463720,-6145.83,0.0003041,2]
[358985015,1745603463730,-1112.89,0.0003041,2]
[358985016,1745603463739,-500.0,0.0003041,2]
[358985017,1745603463749,-548.46153493,0.0003041,2]
[358985018,1745603463759,-500.0,0.0003041,2]
[358985019,1745603463770,-500.0,0.0003041,2]
[358985020,1745603463780,-516.35,0.0003041,2]
[358985021,1745603463789,-500.0,0.0003041,2]
[358985022,1745603463799,-500.0,0.0003041,2]
[358985023,1745603463809,-500.0,0.0003041,2]
[358985024,1745603463819,-500.0,0.0003041,2]
[358985025,1745603463829,-603.36,0.0003041,2]
[358985026,1745603463838,-500.0,0.0003041,2]
[358985027,1745603463848,-329.9151587,0.0003041,2]
[358985028,1745603463858,-500.0,0.0003041,2]
[358985029,1745603463867,-500.0,0.0003041,2]
[358985030,1745603463877,-581.58012516,0.0003041,2]
[358985031,1745603463886,-573.97,0.0003041,2]
[358985032,1745603463896,-500.0,0.0003041,2]
[358985033,1745603463906,-510.84515895,0.0003041,2]
[358985034,1745603463915,-500.0,0.0003041,2]
[358985035,1745603463926,-500.0,0.0003041,2]
[358985036,1745603463936,-525.30867834,0.0003041,2]
[358985037,1745603463946,-500.0,0.0003041,2]
[358985038,1745603463956,-500.0,0.0003041,2]
[358985039,1745603463969,-500.0,0.0003041,2]
[358985040,1745603463979,-944.58,0.0003041,2]
[358985041,1745603463989,-980.6,0.0003041,2]
[358985042,1745603463999,-1157.81,0.0003041,2]
[358985043,1745603464011,-500.0,0.0003041,2]
[358985044,1745603464020,-151.0,0.0003041,7]
[358985045,1745603464030,-500.0,0.0003041,2]
[358985046,1745603464039,-152.851248,0.0003041,7]
[358985047,1745603464049,-459.12295147,0.0003041,2]
[358985048,1745603464059,-592.89,0.0003041,2]
[358985049,1745603464069,-232.52,0.0003041,2]
[358985050,1745603464079,-500.0,0.0003041,2]
[358985051,1745603464088,-500.0,0.0003041,2]
[358985052,1745603464098,-986.94,0.0003041,2]
[358985053,1745603464108,-511.12461942,0.0003041,2]
[358985054,1745603464118,-500.0,0.0003041,2]
[358985055,1745603464128,-500.0,0.0003041,2]
[358985056,1745603464137,-1016.72,0.0003041,2]
[358985057,1745603464147,-500.0,0.0003041,2]
[358985058,1745603464156,-154.385978,0.0003041,7]
[358985059,1745603464166,-500.0,0.0003041,2]
[358985060,1745603464176,-500.0,0.0003041,2]
[358985061,1745603464186,-500.0,0.0003041,2]
[358985062,1745603464196,-598.96594199,0.0003041,2]
[358985063,1745603464206,-500.0,0.0003041,2]
[358985064,1745603464219,-151.349647,0.0003041,7]
[358985065,1745603464229,-862.21,0.0003041,2]
[358985066,1745603464239,-537.48670232,0.0003041,2]
[358985067,1745603464247,-500.0,0.0003041,2]
[358985068,1745603464257,-500.0,0.0003041,2]
[358985069,1745603464267,-500.0,0.0003041,2]
[358985070,1745603464276,-613.66,0.0003041,2]
[358985071,1745603464286,-577.26,0.0003041,2]
[358985072,1745603464295,-721.73,0.0003041,2]
[358985073,1745603464305,-500.0,0.0003041,2]
[358985074,1745603464315,-705.72,0.0003041,2]
[358985075,1745603464324,-1038.96,0.0003041,2]
[358985076,1745603464334,-500.0,0.0003041,2]
[358985077,1745603464344,-567.29,0.0003041,2]
[358985078,1745603464353,-814.55,0.0003041,2]
[358985079,1745603464364,-933.68,0.0003041,2]
[358985080,1745603464374,-500.0,0.0003041,2]
[358985081,1745603464383,-701.5,0.0003041,2]
[358985082,1745603464392,-747.28,0.0003041,2]
[358985083,1745603464402,-500.0,0.0003041,2]
[358985084,1745603464411,-751.09,0.0003041,2]
[358985085,1745603464421,-500.0,0.0003041,2]
[358985086,1745603464430,-500.0,0.0003041,2]
[358985087,1745603464439,-500.0,0.0003041,2]
[358985088,1745603464448,-840.52,0.0003041,2]
[358985089,1745603464457,-500.0,0.0003041,2]
[358985090,1745603464470,-961.07,0.0003041,2]
[358985091,1745603464479,-538.99,0.0003041,2]
[358985092,1745603464490,-500.0,0.0003041,2]
[358985093,1745603464500,-700.14,0.0003041,2]
[358985094,1745603464510,-500.0,0.0003041,2]
[358985095,1745603464520,-690.67,0.0003041,2]
[358985096,1745603464530,-500.0,0.0003041,2]
[358985097,1745603464539,-500.0,0.0003041,2]
[358985098,1745603464549,-884.19,0.0003041,2]
[358985099,1745603464558,-500.0,0.0003041,2]
[358985100,1745603464568,-500.0,0.0003041,2]
[358985101,1745603464578,-590.29,0.0003041,2]
[358985102,1745603464588,-774.29,0.0003041,2]
[358985103,1745603464597,-732.84,0.0003041,2]
[358985104,1745603464607,-500.0,0.0003041,2]
[358985105,1745603464617,-500.0,0.0003041,2]
[358985106,1745603464629,-1047.26,0.0003041,2]
[358985107,1745603464638,-547.5,0.0003041,2]
[358985108,1745603464647,-828.97,0.0003041,2]
[358985109,1745603464656,-762.23,0.0003041,2]
[358985110,1745603464666,-500.0,0.0003041,2]
[358985111,1745603464675,-500.0,0.0003041,2]
[358985112,1745603464684,-500.0,0.0003041,2]
[358985113,1745603464693,-1101.5,0.0003041,2]
[358985114,1745603464703,-571.56,0.0003041,2]
[358985115,1745603464716,-500.0,0.0003041,2]
[358985116,1745603464726,-500.0,0.0003041,2]
[358985117,1745603464735,-500.0,0.0003041,2]
[358985118,1745603464745,-205.71904918,0.0003041,2]
[358985119,1745603464754,-500.0,0.0003041,2]
[358985120,1745603464763,-500.0,0.0003041,2]
[358985121,1745603464774,-500.0,0.0003041,2]
[358985122,1745603464784,-972.46,0.0003041,2]
[358985123,1745603464794,-500.0,0.0003041,2]
[358985124,1745603464803,-551.05,0.0003041,2]
[358985125,1745603464813,-879.53,0.0003041,2]
[358985126,1745603464823,-500.0,0.0003041,2]
[358985127,1745603464832,-500.0,0.0003041,2]
[358985128,1745603464842,-151.0,0.0003041,5]
[358985129,1745603464851,-500.0,0.0003041,2]
[358985130,1745603464860,-500.0,0.0003041,2]
[358985131,1745603464869,-500.0,0.0003041,2]
[358985132,1745603464878,-517.79685938,0.0003041,2]
[358985133,1745603464888,-669.86,0.0003041,2]
[358985134,1745603464897,-272.34739305,0.0003041,2]
[358985135,1745603464907,-711.71,0.0003041,2]
[358985136,1745603464918,-500.0,0.0003041,2]
[358985137,1745603464931,-1050.2,0.0003041,2]
[358985138,1745603464942,-586.59,0.0003041,2]
[358985139,1745603464952,-500.0,0.0003041,2]
[358985140,1745603464963,-500.0,0.0003041,2]
[358985141,1745603464973,-500.0,0.0003041,2]
[358985142,1745603464982,-500.0,0.0003041,2]
[358985143,1745603464992,-500.0,0.0003041,2]
[358985144,1745603465005,-500.0,0.0003041,2]
[358985145,1745603465017,-500.0,0.0003041,2]
[358985146,1745603465028,-500.0,0.0003041,2]
[358985147,1745603465039,-500.0,0.0003041,2]
[358985148,1745603465049,-500.0,0.0003041,2]
[358985149,1745603465059,-500.0,0.0003041,2]
[358985150,1745603465068,-815.53,0.0003041,2]
[358985151,1745603465077,-500.0,0.0003041,2]
[358985152,1745603465086,-500.0,0.0003041,2]
[358985153,1745603465097,-500.0,0.0003041,2]
[358985154,1745603465106,-500.0,0.0003041,2]
[358985155,1745603465116,-500.0,0.0003041,2]
[358985156,1745603465125,-500.0,0.0003041,2]
[358985157,1745603465135,-500.0,0.0003041,2]
[358985158,1745603465144,-729.81,0.0003041,2]
[358985159,1745603465154,-500.0,0.0003041,2]
[358985160,1745603465164,-602.39,0.0003041,2]
[358985161,1745603465174,-500.0,0.0003041,2]
[358985162,1745603465183,-500.0,0.0003041,2]
[358985163,1745603465193,-520.74135844,0.0003041,2]
[358985164,1745603465202,-460.81644974,0.0003041,2]
[358985165,1745603465213,-1737.04,0.0003041,2]
[358985166,1745603465222,-1063.0,0.0003041,2]
[358985167,1745603465232,-968.87,0.0003041,2]
[358985168,1745603465242,-526.42,0.0003041,2]
[358985169,1745603465251,-597.02,0.0003041,2]
[358985170,1745603465260,-500.0,0.0003041,2]
[358985171,1745603465270,-510.03721358,0.0003041,2]
[358985172,1745603465280,-500.0,0.0003041,2]
[358985173,1745603465290,-500.0,0.0003041,2]
[358985174,1745603465300,-740.13,0.0003041,2]
[358985175,1745603465310,-500.0,0.0003041,2]
[358985176,1745603465320,-505.85,0.0003041,2]
[358985177,1745603465330,-898.13,0.0003041,2]
[358985178,1745603465340,-500.0,0.0003041,2]
[358985179,1745603465350,-500.0,0.0003041,2]
[358985180,1745603465360,-500.0,0.0003041,2]
[358985181,1745603465370,-592.45875097,0.0003041,2]
[358985182,1745603465380,-500.0,0.0003041,2]
[358985183,1745603465390,-510.88844777,0.0003041,2]
[358985184,1745603465400,-1556.34,0.0003041,2]
[358985185,1745603465410,-500.0,0.0003041,2]
[358985186,1745603465420,-500.0,0.0003041,2]
[358985187,1745603465430,-228.49430612,0.0003041,2]
[358985188,1745603465440,-1426.31,0.0003041,2]
[358985189,1745603465450,-1236.29,0.0003041,2]
[358985190,1745603465463,-500.0,0.0003041,2]
[358985191,1745603465475,-1090.7,0.0003041,2]
[358985192,1745603465485,-500.0,0.0003041,2]
[358985193,1745603465495,-500.0,0.0003041,2]
[358985194,1745603465506,-500.0,0.0003041,2]
[358985195,1745603465515,-151.0,0.0003041,7]
[358985196,1745603465526,-1373.27,0.0003041,2]
[358985197,1745603465535,-500.0,0.0003041,2]
[358985198,1745603465546,-760.4,0.0003041,2]
[358985199,1745603465556,-500.0,0.0003041,2]
[358985200,1745603465566,-151.0,0.0003041,7]
[358985201,1745603465576,-500.0,0.0003041,2]
[358985202,1745603465586,-687.05,0.0003041,2]
[358985203,1745603465596,-515.46726727,0.0003041,2]
[358985204,1745603465606,-500.0,0.0003041,2]
[358985205,1745603465615,-500.0,0.0003041,2]
[358985206,1745603465625,-500.0,0.0003041,2]
[358985207,1745603465635,-500.0,0.0003041,2]
[358985208,1745603465645,-567.68,0.0003041,2]
[358985209,1745603465654,-500.0,0.0003041,2]
[358985210,1745603465664,-573.51,0.0003041,2]
[358985211,1745603465674,-500.0,0.0003041,2]
[358985212,1745603465684,-865.45,0.0003041,2]
[358985213,1745603465695,-585.26572592,0.0003041,2]
[358985214,1745603465708,-800.19,0.0003041,2]
[358985215,1745603465720,-500.0,0.0003041,2]
[358985216,1745603465730,-915.13,0.0003041,2]
[358985217,1745603465741,-500.0,0.0003041,2]
[358985218,1745603465751,-2451.9,0.0003041,2]
[358985219,1745603465762,-500.0,0.0003041,2]
[358985220,1745603465772,-920.4,0.0003041,2]
[358985221,1745603465782,-500.0,0.0003041,2]
[358985222,1745603465793,-500.0,0.0003041,2]
[358985223,1745603465803,-500.0,0.0003041,2]
[358985224,1745603465814,-500.0,0.0003041,2]
[358985225,1745603465825,-500.0,0.0003041,2]
[358985226,1745603465836,-1827.59,0.0003041,2]
[358985227,1745603465847,-500.0,0.0003041,2]
[358985228,1745603465858,-500.0,0.0003041,2]
[358985229,1745603465868,-1816.76,0.0003041,2]
[358985230,1745603465879,-996.53,0.0003041,2]
[358985231,1745603465888,-518.65802727,0.0003041,2]
[358985232,1745603465898,-1041.97,0.0003041,2]
[358985233,1745603465908,-500.0,0.0003041,2]
[358985234,1745603465918,-500.0,0.0003041,2]
[358985235,1745603465930,-500.0,0.0003041,2]
[358985236,1745603465940,-718.69,0.0003041,2]
[358985237,1745603465950,-500.0,0.0003041,2]
[358985238,1745603465961,-500.0,0.0003041,2]
[358985239,1745603465971,-500.0,0.0003041,2]
[358985240,1745603465981,-500.0,0.0003041,2]
[358985241,1745603465991,-609.77,0.0003041,2]
[358985242,1745603466003,-500.0,0.0003041,2]
[358985243,1745603466013,-500.0,0.0003041,2]
[358985244,1745603466023,-538.38,0.0003041,2]
[358985245,1745603466032,-848.28,0.0003041,2]
[358985246,1745603466043,-500.0,0.0003041,2]
[358985247,1745603466053,-500.0,0.0003041,2]
[358985248,1745603466063,-500.0,0.0003041,2]
[358985249,1745603466073,-500.0,0.0003041,2]
[358985250,1745603466082,-500.0,0.0003041,2]
[358985251,1745603466092,-500.0,0.0003041,2]
[358985252,1745603466102,-949.54,0.0003041,2]
[358985253,1745603466112,-500.0,0.0003041,2]
[358985254,1745603466122,-151.0,0.0003041,7]
[358985255,1745603466132,-934.76,0.0003041,2]
[358985256,1745603466142,-500.0,0.0003041,2]
[358985257,1745603466152,-500.0,0.0003041,2]
[358985258,1745603466163,-575.34996929,0.0003041,2]
[358985259,1745603466172,-500.0,0.0003041,2]
[358985260,1745603466183,-151.0,0.0003041,7]
[358985261,1745603466192,-731.33,0.0003041,2]
[358985262,1745603466202,-500.0,0.0003041,2]
[358985263,1745603466216,-500.0,0.0003041,2]
[358985264,1745603466226,-531.63,0.0003041,2]
[358985265,1745603466237,-500.0,0.0003041,2]
[358985266,1745603466248,-500.0,0.0003041,2]
[358985267,1745603466259,-500.0,0.0003041,2]
[358985268,1745603466269,-586.90492225,0.0003041,2]
[358985269,1745603466279,-2486.31,0.0003041,2]
[358985270,1745603466289,-500.0,0.0003041,2]
[358985271,1745603466299,-708.89,0.0003041,2]
[358985272,1745603466309,-500.0,0.0003041,2]
[358985273,1745603466318,-500.0,0.0003041,2]
[358985274,1745603466328,-1048.37,0.0003041,2]
[358985275,1745603466338,-500.0,0.0003041,2]
[358985276,1745603466348,-500.0,0.0003041,2]
[358985277,1745603466358,-999.81,0.0003041,2]
[358985278,1745603466368,-500.0,0.0003041,2]
[358985279,1745603466378,-505.02,0.0003041,2]
[358985280,1745603466388,-500.0,0.0003041,2]
[358985281,1745603466398,-500.0,0.0003041,2]
[358985282,1745603466408,-525.67,0.0003041,2]
[358985283,1745603466420,-624.44,0.0003041,2]
[358985284,1745603466431,-500.0,0.0003041,2]
[358985285,1745603466441,-500.0,0.0003041,2]
[358985286,1745603466452,-543.1619629,0.0003041,2]
[358985287,1745603466463,-500.0,0.0003041,2]
[358985288,1745603466473,-811.35,0.0003041,2]
[358985289,1745603466483,-755.03,0.0003041,2]
[358985290,1745603466494,-500.0,0.0003041,2]
[358985291,1745603466503,-500.0,0.0003041,2]
[358985292,1745603466513,-629.88219425,0.0003041,2]
[358985293,1745603466523,-500.0,0.0003041,2]
[358985294,1745603466535,-500.0,0.0003041,2]
[358985295,1745603466544,-500.0,0.0003041,2]
[358985296,1745603466556,-876.93,0.0003041,2]
[358985297,1745603466566,-523.14,0.0003041,2]
[358985298,1745603466576,-510.79,0.0003041,2]
[358985299,1745603466586,-513.8382107,0.0003041,2]
[358985300,1745603466595,-500.0,0.0003041,2]
[358985301,1745603466605,-652.77,0.0003041,2]
[358985302,1745603466616,-500.0,0.0003041,2]
[358985303,1745603466626,-500.0,0.0003041,2]
[358985304,1745603466636,-581.76409556,0.0003041,2]
[358985305,1745603466647,-500.0,0.0003041,2]
[358985306,1745603466657,-500.0,0.0003041,2]
[358985307,1745603466667,-929.32,0.0003041,2]
[358985308,1745603466677,-1039.05,0.0003041,2]
[358985309,1745603466688,-500.0,0.0003041,2]
[358985310,1745603466699,-500.0,0.0003041,2]
[358985311,1745603466708,-500.0,0.0003041,2]
[358985312,1745603466720,-678.39,0.0003041,2]
[358985313,1745603466730,-500.0,0.0003041,2]
[358985314,1745603466741,-254.039833,0.0003041,7]
[358985315,1745603466752,-575.0,0.0003041,2]
[358985316,1745603466762,-373.99875856,0.0003041,2]
[358985317,1745603466772,-500.0,0.0003041,2]
[358985318,1745603466783,-500.0,0.0003041,2]
[358985319,1745603466793,-500.0,0.0003041,2]
[358985320,1745603466803,-500.0,0.0003041,2]
[358985321,1745603466814,-500.0,0.0003041,2]
[358985322,1745603466825,-254.039833,0.0003041,7]
[358985323,1745603466835,-543.64,0.0003041,2]
[358985324,1745603466845,-500.0,0.0003041,2]
[358985325,1745603466855,-500.0,0.0003041,2]
[358985326,1745603466866,-500.0,0.0003041,2]
[358985327,1745603466876,-500.0,0.0003041,2]
[358985328,1745603466886,-291.162233,0.0003041,7]
[358985329,1745603466896,-977.1,0.0003041,2]
[358985330,1745603466906,-500.0,0.0003041,2]
[358985331,1745603466916,-500.0,0.0003041,2]
[358985332,1745603466931,-839.64,0.0003041,2]
[358985333,1745603466941,-544.75486638,0.0003041,2]
[358985334,1745603466952,-500.0,0.0003041,2]
[358985335,1745603466963,-643.39,0.0003041,2]
[358985336,1745603466974,-1028.72,0.0003041,2]
[358985337,1745603466984,-524.2,0.0003041,2]
[358985338,1745603466995,-152.25535,0.0003041,7]
[358985339,1745603467007,-500.0,0.0003041,2]
[358985340,1745603467017,-660.66,0.0003041,2]
[358985341,1745603467027,-619.09,0.0003041,2]
[358985342,1745603467037,-500.0,0.0003041,2]
[358985343,1745603467047,-500.0,0.0003041,2]
[358985344,1745603467057,-500.0,0.0003041,2]
[358985345,1745603467067,-498.82426593,0.0003041,2]
[358985346,1745603467077,-500.0,0.0003041,2]
[358985347,1745603467087,-500.0,0.0003041,2]
[358985348,1745603467097,-500.0,0.0003041,2]
[358985349,1745603467107,-892.05,0.0003041,2]
[358985350,1745603467117,-847.6,0.0003041,2]
[358985351,1745603467127,-500.0,0.0003041,2]
[358985352,1745603467136,-500.0,0.0003041,2]
[358985353,1745603467147,-500.0,0.0003041,2]
[358985354,1745603467156,-500.0,0.0003041,2]
[358985355,1745603467166,-543.59305698,0.0003041,2]
[358985356,1745603467176,-500.0,0.0003041,2]
[358985357,1745603467186,-500.0,0.0003041,2]
[358985358,1745603467196,-500.0,0.0003041,2]
[358985359,1745603467206,-850.45,0.0003041,2]
[358985360,1745603467216,-240.40763222,0.0003041,2]
[358985361,1745603467226,-972.4,0.0003041,2]
[358985362,1745603467236,-335.39836379,0.0003041,2]
[358985363,1745603467246,-999.59,0.0003041,2]
[358985364,1745603467255,-500.0,0.0003041,2]
[358985365,1745603467265,-500.0,0.0003041,2]
[358985366,1745603467275,-500.0,0.0003041,2]
[358985367,1745603467285,-500.0,0.0003041,2]
[358985368,1745603467294,-707.48,0.0003041,2]
[358985369,1745603467304,-500.0,0.0003041,2]
[358985370,1745603467314,-996.65,0.0003041,2]
[358985371,1745603467324,-500.0,0.0003041,2]
[358985372,1745603467334,-500.0,0.0003041,2]
[358985373,1745603467344,-500.0,0.0003041,2]
[358985374,1745603467353,-598.47599956,0.0003041,2]
[358985375,1745603467363,-500.0,0.0003041,2]
[358985376,1745603467373,-377.36224764,0.0003041,2]
[358985377,1745603467382,-500.0,0.0003041,2]
[358985378,1745603467393,-500.0,0.0003041,2]
[358985379,1745603467403,-500.0,0.0003041,2]
[358985380,1745603467412,-1182.86,0.0003041,2]
[358985381,1745603467422,-500.0,0.0003041,2]
[358985382,1745603467432,-594.58,0.0003041,2]
[358985383,1745603467442,-998.52,0.0003041,2]
[358985384,1745603467452,-500.0,0.0003041,2]
[358985385,1745603467463,-569.70628129,0.0003041,2]
[358985386,1745603467751,-749.57,0.0003041,2]
[358985387,1745603467762,-585.97,0.0003041,2]
[358985388,1745603467772,-500.0,0.0003041,2]
[358985389,1745603467782,-500.0,0.0003041,2]
[358985390,1745603467792,-500.0,0.0003041,2]
[358985391,1745603467801,-500.0,0.0003041,2]
[358985392,1745603467811,-669.83,0.0003041,2]
[358985393,1745603467820,-500.0,0.0003041,2]
[358985394,1745603467830,-906.86,0.0003041,2]
[358985395,1745603467840,-974.96,0.0003041,2]
[358985396,1745603467849,-560.9618911,0.0003041,2]
[358985397,1745603467859,-500.0,0.0003041,2]
[358985398,1745603467868,-865.06,0.0003041,2]
[358985399,1745603467878,-500.0,0.0003041,2]
[358985400,1745603467887,-737.7,0.0003041,2]
[358985401,1745603467896,-844.9,0.0003041,2]
[358985402,1745603467906,-500.0,0.0003041,2]
[358985403,1745603467916,-500.0,0.0003041,2]
[358985404,1745603467930,-500.0,0.0003041,2]
[358985405,1745603467940,-500.0,0.0003041,2]
[358985406,1745603467950,-625.23,0.0003041,2]
[358985407,1745603467960,-500.0,0.0003041,2]
[358985408,1745603467975,-500.0,0.0003041,2]
[358985409,1745603467985,-500.0,0.0003041,2]
[358985410,1745603467995,-684.81,0.0003041,2]
[358985411,1745603468006,-500.0,0.0003041,2]
[358985412,1745603468015,-632.36,0.0003041,2]
[358985413,1745603468025,-500.0,0.0003041,2]
[358985414,1745603468035,-500.0,0.0003041,2]
[358985415,1745603468045,-289.91592802,0.0003041,2]
[358985416,1745603468055,-500.0,0.0003041,2]
[358985417,1745603468065,-500.0,0.0003041,2]
[358985418,1745603468074,-500.0,0.0003041,2]
[358985419,1745603468084,-500.0,0.0003041,2]
[358985420,1745603468094,-500.0,0.0003041,2]
[358985421,1745603468105,-500.0,0.0003041,2]
[358985422,1745603468114,-642.74932936,0.0003041,2]
[358985423,1745603468124,-564.0,0.0003041,2]
[358985424,1745603468134,-500.0,0.0003041,2]
[358985425,1745603468144,-424.57571957,0.0003041,2]
[358985426,1745603468153,-500.0,0.0003041,2]
[358985427,1745603468163,-519.06923262,0.0003041,2]
[358985428,1745603468173,-500.0,0.0003041,2]
[358985429,1745603468183,-500.0,0.0003041,2]
[358985430,1745603468193,-651.65,0.0003041,2]
[358985431,1745603468202,-1017.67,0.0003041,2]
[358985432,1745603468215,-500.0,0.0003041,2]
[358985433,1745603468225,-799.11,0.0003041,2]
[358985434,1745603468236,-524.27557523,0.0003041,2]
[358985435,1745603468246,-676.04,0.0003041,2]
[358985436,1745603468256,-500.0,0.0003041,2]
[358985437,1745603468267,-500.0,0.0003041,2]
[358985438,1745603468277,-500.0,0.0003041,2]
[358985439,1745603468286,-500.0,0.0003041,2]
[358985440,1745603468296,-500.0,0.0003041,2]
[358985441,1745603468305,-534.46515515,0.0003041,2]
[358985442,1745603468315,-500.0,0.0003041,2]
[358985443,1745603468325,-550.18807569,0.0003041,2]
[358985444,1745603468335,-608.17,0.0003041,2]
[358985445,1745603468345,-543.58,0.0003041,2]
[358985446,1745603468354,-356.46,0.0003041,2]
[358985447,1745603468363,-548.33,0.0003041,2]
[358985448,1745603468373,-706.11,0.0003041,2]
[358985449,1745603468382,-500.0,0.0003041,2]
[358985450,1745603468393,-500.0,0.0003041,2]
[358985451,1745603468403,-806.87,0.0003041,2]
[358985452,1745603468412,-550.28840902,0.0003041,2]
[358985453,1745603468423,-880.01,0.0003041,2]
[358985454,1745603468432,-500.0,0.0003041,2]
[358985455,1745603468442,-500.0,0.0003041,2]
[358985456,1745603468452,-354.49,0.0003041,2]
[358985457,1745603468464,-500.0,0.0003041,2]
[358985458,1745603468474,-500.0,0.0003041,2]
[358985459,1745603468484,-500.0,0.0003041,2]
[358985460,1745603468494,-562.22,0.0003041,2]
[358985461,1745603468504,-790.26,0.0003041,2]
[358985462,1745603468515,-508.48,0.0003041,2]
[358985463,1745603468524,-500.0,0.0003041,2]
[358985464,1745603468534,-500.0,0.0003041,2]
[358985465,1745603468544,-500.0,0.0003041,2]
[358985466,1745603468553,-319.38972636,0.0003041,2]
[358985467,1745603468563,-500.0,0.0003041,2]
[358985468,1745603468573,-500.0,0.0003041,2]
[358985469,1745603468584,-500.0,0.0003041,2]
[358985470,1745603468594,-500.0,0.0003041,2]
[358985471,1745603468606,-1031.85,0.0003041,2]
[358985472,1745603468616,-1194.05,0.0003041,2]
[358985473,1745603468626,-558.06,0.0003041,2]
[358985474,1745603468637,-500.0,0.0003041,2]
[358985475,1745603468648,-500.0,0.0003041,2]
[358985476,1745603468658,-500.0,0.0003041,2]
[358985477,1745603468668,-792.67,0.0003041,2]
[358985478,1745603468678,-500.0,0.0003041,2]
[358985479,1745603468688,-500.0,0.0003041,2]
[358985480,1745603468698,-500.0,0.0003041,2]
[358985481,1745603468708,-500.0,0.0003041,2]
[358985482,1745603468720,-500.0,0.0003041,2]
[358985483,1745603468731,-519.3,0.0003041,2]
[358985484,1745603468743,-500.0,0.0003041,2]
[358985485,1745603468754,-500.0,0.0003041,2]
[358985486,1745603468767,-500.0,0.0003041,2]
[358985487,1745603468777,-862.68,0.0003041,2]
[358985488,1745603468787,-4163.96,0.0003041,2]
[358985489,1745603468796,-500.0,0.0003041,2]
[358985490,1745603468806,-500.0,0.0003041,2]
[358985491,1745603468816,-642.32,0.0003041,2]